Cogmind - Beta 13 @@@ ROGUE MODE // 2024.03.31 @ 12:50:38 Player: Kukri Man Result: Self-destructed Performance ------------- Evolutions (1) 500 Regions Visited (4) 800 Robots Destroyed (51) 255 Value Destroyed (1530) 1530 Prototype IDs (0) 0 Alien Tech Used (0) 0 Bonus (585) 585 TOTAL SCORE: 3670 Bonus ------- Met Imprinter 300 Was Imprinted 300 Friendly Fire -15 Cogmind --------- Core Integrity 8/400 Matter 286/300 Energy 250/250 System Corruption 0% Temperature Cool (56) Movement Walking (190) Ox1 Location -7/Zion Parts ------- > --- POWER (1) -------- Ion Engine > --- PROPULSION (2) --- Aluminum Leg Aluminum Leg > --- UTILITY (3) ------ Heat Sink Medium Storage Unit Signal Interpreter > --- WEAPON (3) ------- Beam Rifle Improved Light Cannon Datajack > --- INVENTORY (10) --- Sensor Array Signal Interpreter Terrain Scanner Improved Terrain Scanner 0b10 Decoder Chip [Skirmisher] Melee Analysis Suite Relay Coupler [Programmer] (71) Relay Coupler [Programmer] (71) Rocket Launcher Makeshift Axe Peak State ------------ > --- POWER ------------ Ion Engine > --- PROPULSION ------- Aluminum Leg Aluminum Leg > --- UTILITY ---------- Heat Sink Medium Storage Unit Signal Interpreter > --- WEAPON ----------- Beam Rifle Improved Light Cannon Rocket Launcher > --- INVENTORY -------- Sensor Array Signal Interpreter Terrain Scanner Improved Terrain Scanner Salvage Targeting Computer Melee Analysis Suite Relay Coupler [Programmer] Relay Coupler [Programmer] Datajack Makeshift Axe [Rating: 15] Favorites ----------- Power Ion Engine Engine Ion Engine Propulsion Aluminum Leg Leg Aluminum Leg Wheel Compact Wheel Hover Unit Hover Unit Utility Medium Storage Unit Device Heat Sink Storage Medium Storage Unit Processor Signal Interpreter Weapon Rocket Launcher Energy Gun Beam Rifle Ballistic Gun Heavy Assault Rifle Ballistic Cannon Improved Light Cannon Launcher Rocket Launcher Special Melee Weapon Datajack Build | -11 -10 -9 -9 -7 ------- Run | Yrd Mat Mat Min Zio Slots Evolved 2 | . . 2 . . Power . | . . . . . Propulsion . | . . . . . Utility 1 | . . 1 . . Weapon 1 | . . 1 . . Parts Attached 37 | 6 11 16 3 1 Power 5 | 1 2 2 . . Engine 5 | 1 2 2 . . Core . | . . . . . Reactor . | . . . . . Propulsion 12 | 2 4 5 1 . Treads . | . . . . . Leg 9 | . 4 4 1 . Wheel 2 | 2 . . . . Hover 1 | . . 1 . . Flight . | . . . . . Utility 6 | 1 2 3 . . Device 2 | . 1 1 . . Storage 3 | 1 1 1 . . Processor 1 | . . 1 . . Hackware . | . . . . . Protection . | . . . . . Artifact . | . . . . . Weapon 14 | 2 3 6 2 1 Energy Gun 6 | 1 1 3 1 . Energy Cannon . | . . . . . Ballistic Gun 3 | 1 1 1 . . Ballistic Cannon 1 | . . 1 . . Launcher 3 | . 1 1 1 . Special Weapon . | . . . . . Impact Weapon . | . . . . . Slashing Weapon . | . . . . . Piercing Weapon . | . . . . . Special Melee Weapon 1 | . . . . 1 Unidentified Prototypes . | . . . . . Parts Lost 12 | . 6 5 1 . Power 1 | . 1 . . . Propulsion 5 | . 3 2 . . Utility . | . . . . . Weapon 6 | . 2 3 1 . Highest Loss Streak 3 | . 3 3 1 . To Critical Strikes . | . . . . . Average Slot Usage (%) 96 | . 93 97 91 100 Engine 11 | . 13 10 11 11 Leg 19 | . 22 20 14 22 Device 11 | . 11 11 11 11 Storage 11 | . 13 11 11 11 Processor 9 | . . 11 11 11 Energy Gun 9 | . 11 12 4 11 Ballistic Gun 5 | . 15 9 6 . Ballistic Cannon 8 | . . . 11 11 Launcher 9 | . . 9 11 11 Naked Turns . | . . . . . Heaviest Build 27 | 13 19 27 27 27 Greatest Support 26 | 26 26 20 20 20 Greatest Overweight (x) 7 | . 3 7 2 1 Average Overweight (x) . | . . 1 1 1 Largest Inventory Capacity 10 | 8 10 10 10 10 Average Capacity 9 | 7 9 10 10 10 Most Carried 10 | 2 10 10 9 10 Average Carried 7 | 1 5 7 7 9 Final Capacity 10 | 8 10 10 10 10 Final Carried 10 | 2 10 7 8 10 Class Distribution -------------------- 59% | Scavenger-Bomber 20% | Scavenger-Gunner 14% | Mutant 4% | Bomber Dominant Class ---------------- Mutant | -10/Materials Scavenger-Gunner | -9/Materials Scavenger-Bomber | -9/Mines Scavenger-Bomber | -7/Zion Resources | -11 -10 -9 -9 -7 ----------- Run | Yrd Mat Mat Min Zio Matter Collected 917 | 260 161 218 230 48 Remotely . | . . . . . Salvage Created 1750 | . 569 823 358 . Parts 110 | . 31 59 20 . Haulers Intercepted . | . . . . . Recyclers Shooed . | . . . . . Parts Field Recycled . | . . . . . Retrieved Matter . | . . . . . Parts Self-Destructed . | . . . . . Prevented . | . . . . . Kills | -11 -10 -9 -9 -7 ------- Run | Yrd Mat Mat Min Zio Combat Hostiles Destroyed 43 | . 13 19 11 . Guns 26 | . 11 13 2 . Cannons 9 | . . 1 8 . AOE 8 | . 2 5 1 . Classes Destroyed 11 | . 2 6 3 . Worker 2 | . . 2 . . Builder 1 | . . 1 . . Tunneler 1 | . . . 1 . Recycler 1 | . . . 1 . Watcher 5 | . 2 3 . . Swarmer 3 | . . 3 . . Grunt 32 | . 13 10 9 . Brawler 1 | . . 1 . . Duelist 1 | . . 1 . . Sentry 4 | . . 4 . . Assembled 2 | . . . 2 . Best Kill Streak 14 | . 2 14 5 . Combat Bots Only 8 | . 2 8 4 . Max Kills in Single Turn 4 | . 2 4 2 . Gunslinging 1 | . . 1 . . Exploded 3 | . 2 3 1 . Melee . | . . . . . Uniques/NPCs Destroyed . | . . . . . Combat | -11 -10 -9 -9 -7 -------- Run | Yrd Mat Mat Min Zio Hostile Shots Fired 242 | . 82 114 34 12 Missed 77 | . 24 40 9 4 Damage Taken 2215 | . 772 1032 317 94 Core 487 | . 95 272 120 . Absorbed by Shields . | . . . . . Regen/Repaired (Parts) 263 | . . . . 263 Core Remaining (%) 81 | 100 62 . . . Volleys Fired 139 | . 63 44 31 1 Largest 3 | . 2 3 2 2 Hottest 113 | . 70 113 95 95 Shots Fired 253 | . 98 93 60 2 Gun 213 | . 97 86 29 1 Cannon 33 | . . 1 31 1 Launcher 7 | . 1 6 . . Special . | . . . . . Kinetic 154 | . 67 42 44 1 Thermal 92 | . 30 45 16 1 Explosive 7 | . 1 6 . . Electromagnetic . | . . . . . Robot Hit Streak 13 | . 13 13 7 2 Robot Miss Streak 5 | . 3 3 5 1 Penetration Max . | . . . . . Secondary Targets 1 | . . 1 . . Max Gunslinging Chain 1 | . . 1 . . Shots Hit Robots 158 | . 61 68 28 1 Core Hits 94 | . 39 41 14 . Critical Kills . | . . . . . Critical Parts Destroyed . | . . . . . Critical Strikes 1 | . 1 . . . Burn 1 | . 1 . . . Melee Attacks . | . . . . . Impact . | . . . . . Slashing . | . . . . . Piercing . | . . . . . Sneak Attacks . | . . . . . Combat Hostiles . | . . . . . Follow-up Attacks . | . . . . . Damage Inflicted 2804 | . 726 1320 743 15 Guns 1626 | . 612 808 191 15 Cannons 429 | . . 18 411 . Explosions 749 | . 114 494 141 . Melee . | . . . . . Ramming . | . . . . . Kinetic 1317 | . 364 483 470 . Thermal 879 | . 248 343 273 15 Explosive 608 | . 114 494 . . Electromagnetic . | . . . . . Impact . | . . . . . Slashing . | . . . . . Piercing . | . . . . . Highest Corruption . | . . . . . Average Corruption . | . . . . . Corruption Purged . | . . . . . Corruption Blocked . | . . . . . Overload Shots . | . . . . . Overflow Damage 69 | . . 41 28 . Projectiles 13 | . . . 13 . Explosions 56 | . . 41 15 . Melee . | . . . . . Knockbacks 2 | . . . 2 . Impact . | . . . . . Kinetic 2 | . . . 2 . Secondary . | . . . . . Self-Inflicted Damage . | . . . . . Shots . | . . . . . Rammed . | . . . . . Targets Rammed . | . . . . . Kicked . | . . . . . Crushed . | . . . . . Highest Temperature 58 | . 19 21 26 58 Average Temperature 8 | . 6 8 11 57 Received Heat Transfer 963 | . 435 330 138 60 Siege Activations . | . . . . . Robots Corrupted . | . . . . . Combat Hostiles . | . . . . . Parts Fried . | . . . . . Impact Corruptions . | . . . . . Robots Melted . | . . . . . Combat Hostiles . | . . . . . Parts Melted 1 | . 1 . . . Heat Transferred 2109 | . 814 775 483 37 Parts Sabotaged . | . . . . . Parts Stolen . | . . . . . Parts Stripped . | . . . . . Power Chain Reactions . | . . . . . Alert | -11 -10 -9 -9 -7 ------- Run | Yrd Mat Mat Min Zio Peak Influence 390 | . 217 390 164 . Initial 151 | . . 52 151 . Average 108 | . 78 201 86 . Maximum Alert Level 1 | . 1 1 . . Low Security (%) 88 | 100 95 53 100 . Level 1 11 | . 4 46 . . Level 2 . | . . . . . Level 3 . | . . . . . Level 4 . | . . . . . Level 5 . | . . . . . High Security . | . . . . . Max Security . | . . . . . Squads Dispatched 5 | . 4 1 . . Investigation 3 | . 3 . . . Extermination . | . . . . . Reinforcement 2 | . 1 1 . . Assault . | . . . . . Garrison . | . . . . . Intercept . | . . . . . Searches Triggered . | . . . . . Construction Impeded . | . . . . . Haulers Reinforced . | . . . . . Active Scanning Responses . | . . . . . Cargo Convoy Interrupts . | . . . . . Stealth | -11 -10 -9 -9 -7 --------- Run | Yrd Mat Mat Min Zio Distress Signals 4 | . 2 2 . . Communications Jammed . | . . . . . Distress Signals . | . . . . . Times Spotted 62 | . 19 27 11 5 Peak Tracking Total 6 | . 4 6 3 5 Tactical Retreats 1 | . . 1 . . Traps | -11 -10 -9 -9 -7 ------- Run | Yrd Mat Mat Min Zio Traps Triggered 2 | . 2 . . . Indirectly . | . . . . . Trap Hack Attempts . | . . . . . Triggered . | . . . . . Disarmed . | . . . . . Reprogrammed . | . . . . . Reused . | . . . . . Traps Extracted . | . . . . . Installed . | . . . . . Triggered . | . . . . . Machines | -11 -10 -9 -9 -7 ---------- Run | Yrd Mat Mat Min Zio Machines Disabled 2 | . . 1 1 . Max in Single Turn 1 | . . 1 1 . Machines Repaired . | . . . . . Machines Dismantled . | . . . . . Machines Sabotaged . | . . . . . Overloaded Fab Kills . | . . . . . Hacking | -11 -10 -9 -9 -7 --------- Run | Yrd Mat Mat Min Zio Machines Accessed 8 | . 6 2 . . Terminals 6 | . 4 2 . . Fabricators . | . . . . . Repair Stations . | . . . . . Recycling Units 2 | . 2 . . . Scanalyzers . | . . . . . Garrison Access . | . . . . . Total Hacks 17 | . 12 5 . . Successful 7 | . 6 1 . . Failed 10 | . 6 4 . . Catastrophic 2 | . 1 1 . . Database Lockouts . | . . . . . Manual 4 | . . . . 4 Terminals 12 | . 7 5 . . Fabricators . | . . . . . Repair Stations . | . . . . . Recycling Units 5 | . 5 . . . Scanalyzers . | . . . . . Garrison Access . | . . . . . Terminal Hacks 5 | . 4 1 . . Branch Access Points 1 | . . 1 . . Maintenance Status 1 | . 1 . . . Recall Reinforcements 1 | . 1 . . . Registered Components 1 | . 1 . . . Zone Layout 1 | . 1 . . . Fabricator Hacks . | . . . . . Repair Station Hacks . | . . . . . Recycling Unit Hacks 2 | . 2 . . . Report Inventory 2 | . 2 . . . Scanalyzer . | . . . . . Garrison Access Hacks . | . . . . . Unauthorized Hacks . | . . . . . Terminals . | . . . . . Fabricators . | . . . . . Repair Stations . | . . . . . Recycling Units . | . . . . . Scanalyzers . | . . . . . Garrison Access . | . . . . . Data Cores Recovered . | . . . . . Used . | . . . . . Hacking Detections 5 | . 3 2 . . Full Trace Events 1 | . 1 . . . Feedback Events . | . . . . . Feedback Blocked . | . . . . . Robot Schematics Acquired 3 | . . . . 3 Robots Built . | . . . . . Authchips . | . . . . . Time . | . . . . . Total Robot Build Rating . | . . . . . Part Schematics Acquired 15 | . . . . 15 Parts Built . | . . . . . Authchips . | . . . . . Time . | . . . . . Total Part Build Rating . | . . . . . Parts Repaired . | . . . . . Time . | . . . . . Parts Recycled . | . . . . . Recycled Matter . | . . . . . Retrieved Matter . | . . . . . Retrieved Components . | . . . . . Parts Scanalyzed . | . . . . . Part Schematics Acquired . | . . . . . Parts Damaged . | . . . . . Bothacking | -11 -10 -9 -9 -7 ------------ Run | Yrd Mat Mat Min Zio Used RIF Installer . | . . . . . Robots Hacked . | . . . . . Non-combat . | . . . . . Combat . | . . . . . Robot Hacks Applied . | . . . . . Relay Couplers Released . | . . . . . Fabnet Peak Effective % . | . . . . . Robots Rewired . | . . . . . Allies Hacked . | . . . . . Hacks Repelled . | . . . . . Allies | -11 -10 -9 -9 -7 -------- Run | Yrd Mat Mat Min Zio Total Allies 4 | . . . . 4 Largest Group 4 | . . . . 4 Highest-Rated Group 154 | . . . . 154 Highest-Rated Ally 40 | . . . . 40 Total Orders . | . . . . . Ally Attacks . | . . . . . Total Damage . | . . . . . Kills . | . . . . . Allies Corrupted . | . . . . . Allies Melted . | . . . . . Intel | -11 -10 -9 -9 -7 ------- Run | Yrd Mat Mat Min Zio Robot Analysis Total . | . . . . . Derelict Logs Recovered 1 | . . . 1 . Drone Launches . | . . . . . Drone Recoveries . | . . . . . Exploration | -11 -10 -9 -9 -7 ------------- Run | Yrd Mat Mat Min Zio Turns Passed 4248 | 54 611 536 1148 1899 Spaces Moved 2026 | 40 367 192 433 994 Core 11 | 3 6 2 . . Treads . | . . . . . Legs 1910 | . 302 181 433 994 Wheels 96 | 37 59 . . . Hover 9 | . . 9 . . Flight . | . . . . . Fastest Speed 50 | 50 90 120 190 190 Average Speed 184 | 88 116 187 234 190 Slowest Speed 400 | 100 200 400 260 190 Overloaded Moves . | . . . . . Propulsion Burnouts . | . . . . . Robots Hopped . | . . . . . Cave-ins Triggered . | . . . . . Exploration Rate (%) 56 | 4 73 27 88 90 Regions Visited 4 Branch Regions 2 Pre-discovered Areas 4 | . . . 2 2 Known Exits Taken 2 | . . 1 1 . Unknown Exits Taken 2 | 1 1 . . . Scrap Searched 5 | . . . 1 4 Spaces Dug . | . . . . . Terrain Destroyed 45 | . 2 39 4 . Melee . | . . . . . Projectile 1 | . . . 1 . AOE 44 | . 2 39 3 . Terrain Rammed . | . . . . . Walls Destroyed . | . . . . . Machines Disabled . | . . . . . Actions | -11 -10 -9 -9 -7 --------- Run | Yrd Mat Mat Min Zio Total 2318 | 58 467 286 505 1002 Wait 54 | 5 6 9 34 . Move 2022 | 39 366 191 432 994 Hop . | . . . . . Pick Up 47 | 8 16 15 4 4 Fast Attach 1 | . 1 . . . Attach 26 | 6 8 10 2 . Detach 1 | . 1 . . . Swap 10 | . 2 6 1 1 Drop 18 | . 4 11 1 2 Fire 139 | . 63 44 31 1 Melee . | . . . . . Ram . | . . . . . Kick . | . . . . . Crush . | . . . . . Escape Stasis . | . . . . . Rewire . | . . . . . Trap . | . . . . . Miscellaneous . | . . . . . Route ------- -11/Scrapyard -10/Materials (discovered 2 exits: *Mat / [*Min]) -9/Materials (discovered 2 exits: *Min x2) -9/Mines (discovered 2 exits: *Mat / *Zio) -7/Zion (discovered 1 exit: [*Pro]) History --------- Turn | Location | Event 19 | -11/Scrapyard | Discovered new exit (range 16) 55 | -11/Scrapyard | Entered Materials 171 | -10/Materials | Lost 3 parts (2n1w) 307 | -10/Materials | Build established: Mutant 383 | -10/Materials | Discovered new exit (range 9) 621 | -10/Materials | Discovered new exit (range 5) 666 | -10/Materials | Entered another Materials area 666 | -9/Materials | Evolved 2 slots: Utility x1, Weapon x1 760 | -9/Materials | Lost 3 parts (1n2w) 871 | -9/Materials | Core integrity fell below 50% 1041 | -9/Materials | Build established: Scavenger-Gunner 1129 | -9/Materials | Discovered new exit (range 14) 1144 | -9/Materials | Identified exit to Mines 1197 | -9/Materials | Destroyed 8 combat bots 1202 | -9/Materials | Entered Mines 1240 | -9/Mines | Learned location of Storage (-8) 1716 | -9/Mines | Excavation squad dispatched 1716 | -9/Mines | A large section of the Mines collapsed 1823 | -9/Mines | Build established: Scavenger-Bomber 1835 | -9/Mines | Received a Rocket Launcher from a helpful Derelict 1860 | -9/Mines | Core integrity fell below 20% 1966 | -9/Mines | Excavation squad dispatched 2216 | -9/Mines | Excavation squad dispatched 2310 | -9/Mines | Learned location of Zion (-7) 2320 | -9/Mines | Discovered new exit (range 5) 2327 | -9/Mines | Identified exit to Materials 2345 | -9/Mines | A Derelict revealed a hidden shortcut to a safe place 2348 | -9/Mines | Identified exit to Zion 2350 | -9/Mines | Entered Zion 2662 | -7/Zion | Found Relay Coupler [Programmer] 2665 | -7/Zion | Found Relay Coupler [Programmer] 3431 | -7/Zion | Imprinted 3433 | -7/Zion | Declared Zion's savior 3663 | -7/Zion | Visited the Megawrench Repair Shop 3663 | -7/Zion | Megawrench repaired 8 parts 3965 | -7/Zion | Learned location of Armory (-3) 4198 | -7/Zion | Discovered new exit (range 14) 4247 | -7/Zion | Attacked by Zionites 4249 | -7/Zion | Self-destructed Last Messages --------------- Hold RMB on a map location to designate it as a relative view centerpoint. This is especially useful while zoomed, in order to see further in your current direction of exploration. Try it now. 04070_ PUBLIC SERVICE ANNOUNCEMENT: Quarantine Array scanned 1 system, cleaned 0. 04120_ Y5-WNZ(z) disappears into the Twisted Machinery. Hold RMB on a map location to designate it as a relative view centerpoint. This is especially useful while zoomed, in order to see further in your current direction of exploration. Try it now. 04194_ PUBLIC SERVICE ANNOUNCEMENT: Quarantine Array scanned 1 system, cleaned 0. 04198_ EXIT=FOUND 04201_ QO-KKZ(z) emerges from the cave. 04247_ PUBLIC SERVICE ANNOUNCEMENT: Zion is under attack! Defend our home! Map ----- +----------------------------------------------------+ | ?????????????????????????????????????????????????? | | ####?????????????????????????????????????????????? | | """#?????????????????????????????????????????????? | | ""##?????????????????????????????????????????????? | | ""#?????????????????????????????????????????????? | | "#??????????????????????????????????????????????? | | "#??????????????????????????????????????????????? | | "#??????????????????????????????????????????????? | | ""#??????????????????????????????????????????????? | | ""#??????????????????????????????????????????????? | | "#"#?????????????????????????????????????????????? | | ""#??????????????????????????????????????????????? | | ""#?????????????????????????????####?????????????? | | "##???????????????????????????### ##????????????? | | ##???????????????????????????## #????????????? | | #????????????????????????????# < ##???????????? | | #????????????????????????????# #???????????? | | ??????????????????????????????# #???????????? | | ##????????????????????????????# #???????????? | | "#????????????????????????????# ##???????????? | | "#????????????????????????????## ##????????????? | | ##?????????????????????????????# ##?????????????? | | "#??????????????????????????#### #??????????????? | | "##????????????????????###### #??????????????? | | ""#????????????????????# M M ###????????????? | | "##????????????????????# @ M #?????###????? | | ""#????????????????????#zM### ##?##### #####? | | ##"????????????????????# #?## ##??# ## | | #??????????????????????# #??# ##???# # | | "??????????????????????# ##### ##?#### #? | | "??????????????????????# ## ###?## #?? | | "#?????????????????????# ##??# #?? | | ""??#####?????????????## #???# #?? | | "#??# "############?## ## #???# #?? | | "##?# """"""""""""### ##?# ###?## #?? | | ""### """"""""""""## ##?# ##?# ## ## #?? | | ""# # #### #?# # # ##? | | #?# """ #? | | #### """ ## | | ""# ############ ### """ # | | "#### """"""""""""#??## ##### # # ### | | "#??# """"""""""""#?## ### ## ## ##? | | "#??# "############## ## | | ##??#####???????????# ### #### ## # | | ????????????????????# ##### #??###### # | | "???????????????????## #### ##???????# # | | "???????????????????## ### ##?????#### # | | ""??????????????????# ##????## | | ""??????????????????# ##??## | | ""?????????????????## #### | +----------------------------------------------------+ Best States ------------- Heat Dissipation 42 Energy Generation 10 Energy Capacity 250 Matter Stores 300 Matter Capacity 300 Sight Range 16 Terrain Scan Density 10 Evasion (%) 55 Item Schematics ----------------- Remote Shield | -7/Zion | Archive Mak. Laser | -7/Zion | Archive Adv. System Restoration Module | -7/Zion | Archive Imp. Deuterium Engine | -7/Zion | Archive Hvy. Machine Gun | -7/Zion | Archive Gatling Laser | -7/Zion | Archive Hvy. Plasma Cannon | -7/Zion | Archive Adv. ECM Suite | -7/Zion | Archive Phase Cannon | -7/Zion | Archive Recalibrator | -7/Zion | Archive Wave Gun | -7/Zion | Archive Imp. Core Shielding | -7/Zion | Archive Imp. Carbon-fiber Leg | -7/Zion | Archive Mak. Flight Unit | -7/Zion | Archive Imp. Trap Scanner | -7/Zion | Archive Robot Schematics ------------------ L-41 Fighter | -7/Zion | Archive B-48 Gladiator | -7/Zion | Archive I-36 Angel | -7/Zion | Archive Fabricated ------------ Nothing Alien Tech Used ----------------- None Achievements -------------- Robot Respite The One Uninvited Guest Challenges ------------ None Game ------ Seed BiocellHoverTube Manual? 0 Play Time 00:40:05 Cumulative 2.1 hours Start 2024.03.31 @ 12:12:25 End 2024.03.31 @ 12:50:38 Sessions 1 Manual Loads 0 Difficulty Rogue Special Mode None Game No. 3 Rogue 1 Adventurer 2 Explorer 0 Win Type - Total 0 Types 0/0/0/0/0/0/0/0/0 Lore% 2 Gallery% 4 Achievement% 6 Wizard Run 0 Options --------- Layout 1 ASCII 0 Keyboard 0 Movement Mouse Keybinds 0 Fullscreen 1 Font 32/SmallcapsGlow Map View 25x20 Zoom Use 99% Tactical HUD 1 Map Filters NONE Filters NONE Steam 1 RUN: 6a449792-06df-403b-8aa4-d5ebd2dc1d76